fUST/lending_fUST_20250903
["ID","MTS","AMOUNT","RATE_DAILY","PERIOD"]
[383316423,1756902675273,-616.92776068,0.00016164,2]
[383316425,1756902675283,-480.0,0.00016164,2]
[383316427,1756902675293,-3576.34,0.00016164,2]
[383316429,1756902675304,-480.0,0.00016164,2]
[383316431,1756902675313,-480.0,0.00016164,2]
[383316433,1756902675323,-516.86,0.00016164,2]
[383316435,1756902675332,-564.09,0.00016164,2]
[383316437,1756902675342,-1140.19,0.00016164,2]
[383316450,1756902675450,-535.9,0.00016164,2]
[383316452,1756902675460,-3480.49,0.00016164,2]
[383316454,1756902675470,-781.04,0.00016164,2]
[383316456,1756902675480,-480.0,0.00016164,2]
[383316458,1756902675490,-631.86,0.00016164,2]
[383316460,1756902675499,-618.87,0.00016164,2]
[383316462,1756902675509,-480.0,0.00016164,2]
[383316464,1756902675518,-1207.72,0.00016164,2]
[383316466,1756902675527,-480.0,0.00016164,2]
[383316468,1756902675537,-658.68,0.00016164,2]
[383316470,1756902675546,-625.86,0.00016164,2]
[383316472,1756902675555,-2584.22120539,0.00016164,2]
[383316474,1756902675565,-2500.0,0.00016164,2]
[383316476,1756902675575,-153.0,0.00016164,2]
[383316478,1756902675585,-153.0,0.00016164,2]
[383316480,1756902675595,-460.0,0.00016188,2]
[383316482,1756902675605,-500.0,0.0001621,2]
[383316485,1756902675616,-500.0,0.0001621,2]
[383316486,1756902675626,-153.0,0.00016219,2]
[383316489,1756902675635,-1500.0,0.00016241,2]
[383316491,1756902675645,-1500.0,0.00016241,2]
[383316492,1756902675656,-1500.0,0.00016241,2]
[383316494,1756902675666,-1500.0,0.00016241,2]
[383316496,1756902675675,-1108.73529901,0.00016241,2]
[383316498,1756902675684,-500.0,0.00016241,2]
[383316500,1756902675694,-1500.0,0.0001626,2]
[383316502,1756902675704,-516.58083836,0.0001626,2]
[383316504,1756902675713,-153.0,0.00016274,2]
[383316506,1756902675722,-153.0,0.00016274,2]
[383316508,1756902675731,-153.0,0.00016274,2]
[383316510,1756902675741,-153.0,0.00016274,2]
[383316512,1756902675751,-153.0,0.00016274,2]
[383316514,1756902675760,-1500.0,0.00016275,2]
[383316516,1756902675770,-1500.0,0.00016275,2]
[383316518,1756902675779,-582.90545205,0.00016275,2]
[383316520,1756902675788,-1500.0,0.00016275,2]
[383316522,1756902675798,-1500.0,0.00016275,2]
[383316525,1756902675808,-1500.0,0.00016275,2]
[383316526,1756902675818,-558.98453895,0.00016275,2]
[383316529,1756902675828,-1438.08950379,0.00016275,2]
[383316531,1756902675838,-1500.0,0.00016275,2]
[383316533,1756902675848,-1500.0,0.00016321,2]
[383316535,1756902675857,-1500.0,0.00016321,2]
[383316537,1756902675867,-1500.0,0.00016321,2]
[383316539,1756902675878,-1500.0,0.00016321,2]
[383316541,1756902675888,-1500.0,0.00016321,2]
[383316543,1756902675897,-1500.0,0.00016328,2]
[383316545,1756902675908,-1500.0,0.00016328,2]
[383316547,1756902675917,-1500.0,0.00016328,2]
[383316549,1756902675927,-1500.0,0.00016328,2]
[383316551,1756902675937,-1500.0,0.00016328,2]
[383316553,1756902675948,-1500.0,0.00016328,2]
[383316555,1756902675957,-760.93023622,0.00016328,2]
[383316557,1756902675968,-1500.0,0.00016328,2]
[383316559,1756902675978,-1500.0,0.00016328,2]
[383316561,1756902675988,-1500.0,0.00016328,2]
[383316563,1756902675999,-1500.0,0.00016328,2]
[383316565,1756902676008,-1500.0,0.00016328,2]
[383316567,1756902676017,-1500.0,0.00016328,2]
[383316569,1756902676027,-1500.0,0.00016328,2]
[383316571,1756902676036,-1500.0,0.00016328,2]
[383316573,1756902676045,-1500.0,0.00016338,2]
[383316575,1756902676055,-3000.0,0.000164,2]
[383316577,1756902676064,-3000.0,0.000164,2]
[383316579,1756902676073,-3000.0,0.000164,2]
[383316581,1756902676083,-3000.0,0.000164,2]
[383316583,1756902676092,-587.0,0.00016418,2]
[383316585,1756902676104,-500.0,0.00016438,2]
[383316587,1756902676114,-456.81956388,0.00016438,2]
[383316589,1756902676124,-480.0,0.00016438,2]
[383316591,1756902676134,-409.35,0.00016438,2]
[383316593,1756902676144,-480.0,0.00016438,2]
[383316595,1756902676159,-480.0,0.00016438,2]
[383316597,1756902676171,-579.95,0.00016438,2]
[383316599,1756902676181,-480.0,0.00016438,2]
[383316601,1756902676191,-480.0,0.00016438,2]
[383316603,1756902676202,-814.64,0.00016438,2]
[383316605,1756902676211,-179.48301101,0.00016438,2]
[383316607,1756902676221,-582.52,0.00016438,2]
[383316609,1756902676231,-480.0,0.00016438,2]
[383316611,1756902676241,-480.0,0.00016438,2]
[383316613,1756902676250,-480.0,0.00016438,2]
[383316615,1756902676260,-480.0,0.00016438,2]
[383316617,1756902676269,-578.96,0.00016438,2]
[383316619,1756902676279,-480.0,0.00016438,2]
[383316621,1756902676289,-3094.17,0.00016438,2]
[383316623,1756902676304,-480.0,0.00016438,2]
[383316625,1756902676314,-597.38,0.00016438,2]
[383316627,1756902676324,-480.0,0.00016438,2]
[383316629,1756902676334,-1170.24,0.00016438,2]
[383316631,1756902676346,-255.86,0.00016438,2]
[383316634,1756902676355,-480.0,0.00016438,2]
[383316636,1756902676365,-1140.52,0.00016438,2]
[383316638,1756902676376,-1213.36,0.00016438,2]
[383316640,1756902676387,-565.74,0.00016438,2]
[383316642,1756902676397,-480.0,0.00016438,2]
[383316644,1756902676406,-1118.3,0.00016438,2]
[383316646,1756902676416,-151.0,0.00016438,2]
[383316648,1756902676425,-480.0,0.00016438,2]
[383316650,1756902676434,-345.89,0.00016438,2]
[383316652,1756902676444,-1392.5,0.00016438,2]
[383316654,1756902676453,-480.0,0.00016438,2]
[383316656,1756902676462,-1157.36,0.00016438,2]
[383316658,1756902676471,-480.0,0.00016438,2]
[383316660,1756902676480,-1188.25,0.00016438,2]
[383316662,1756902676490,-786.72,0.00016438,2]
[383316664,1756902676499,-500.0,0.00016438,2]
[383316666,1756902676509,-500.0,0.00016438,2]
[383316668,1756902676518,-500.0,0.00016438,2]
[383316670,1756902676527,-500.0,0.00016438,2]
[383316672,1756902676536,-500.0,0.00016438,2]
[383316674,1756902676545,-500.0,0.00016438,2]
[383316676,1756902676555,-500.0,0.00016438,2]
[383316678,1756902676565,-500.0,0.00016438,2]
[383316680,1756902676575,-500.0,0.00016438,2]
[383316682,1756902676584,-500.0,0.00016438,2]
[383316684,1756902676595,-500.0,0.00016438,2]
[383316686,1756902676605,-968.55,0.00016438,2]
[383316688,1756902676614,-804.96,0.00016438,2]
[383316690,1756902676623,-480.0,0.00016438,2]
[383316692,1756902676633,-3576.34,0.00016438,2]
[383316695,1756902676643,-480.0,0.00016438,2]
[383316697,1756902676652,-480.0,0.00016438,2]
[383316699,1756902676663,-564.09,0.00016438,2]
[383316701,1756902676673,-1140.19,0.00016438,2]
[383316703,1756902676683,-535.9,0.00016438,2]
[383316705,1756902676692,-3480.49,0.00016438,2]
[383316707,1756902676702,-781.04,0.00016438,2]
[383316709,1756902676711,-480.0,0.00016438,2]
[383316711,1756902676721,-631.86,0.00016438,2]
[383316713,1756902676730,-480.0,0.00016438,2]
[383316715,1756902676739,-1207.72,0.00016438,2]
[383316717,1756902676748,-480.0,0.00016438,2]
[383316719,1756902676757,-658.68,0.00016438,2]
[383316721,1756902676766,-625.86,0.00016438,2]
[383316723,1756902676775,-200.0,0.00016438,3]
[383316725,1756902676784,-200.0,0.00016438,3]
[383316727,1756902676793,-200.0,0.00016438,3]
[383316729,1756902676803,-200.0,0.00016438,3]
[383316731,1756902676812,-200.0,0.00016438,3]
[383316733,1756902676822,-200.0,0.00016438,3]
[383316735,1756902676831,-246.201643,0.00016438,2]
[383316737,1756902676841,-246.201643,0.00016438,2]
[383316739,1756902676851,-246.201643,0.00016438,2]
[383316741,1756902676860,-246.201643,0.00016438,2]
[383316743,1756902676870,-246.201643,0.00016438,2]
[383316745,1756902676879,-246.201643,0.00016438,2]
[383316747,1756902676889,-246.201643,0.00016438,2]
[383316749,1756902676899,-246.201643,0.00016438,2]
[383316751,1756902676909,-246.201643,0.00016438,2]
[383316753,1756902676919,-246.201643,0.00016438,2]
[383316755,1756902676929,-246.201643,0.00016438,2]
[383316757,1756902676939,-246.201643,0.00016438,2]
[383316759,1756902676948,-246.201643,0.00016438,2]
[383316761,1756902676958,-246.201643,0.00016438,2]
[383316763,1756902676967,-246.201643,0.00016438,2]
[383316765,1756902676977,-246.201643,0.00016438,2]
[383316767,1756902676986,-246.201643,0.00016438,2]
[383316769,1756902676995,-246.201643,0.00016438,2]
[383316771,1756902677005,-246.201643,0.00016438,2]
[383316773,1756902677015,-246.201652,0.00016438,2]
[383316775,1756902677024,-151.15173998,0.00016438,2]
[383316777,1756902677033,-151.0,0.00016438,2]
[383316779,1756902677042,-151.0,0.00016438,2]
[383316781,1756902677051,-151.0,0.00016438,2]
[383316783,1756902677060,-151.0,0.00016438,2]
[383316785,1756902677069,-151.0,0.00016438,2]
[383316787,1756902677079,-151.0,0.00016438,2]
[383316789,1756902677089,-151.0,0.00016438,2]
[383316791,1756902677098,-151.0,0.00016438,2]
[383316793,1756902677107,-151.0,0.00016438,2]
[383316795,1756902677116,-151.0,0.00016438,2]
[383316797,1756902677125,-151.0,0.00016438,2]
[383316799,1756902677135,-223.736992,0.00016438,2]
[383316801,1756902677145,-500.01126075,0.00016438,2]
[383316803,1756902677154,-151.0,0.00016438,2]
[383316805,1756902677164,-151.0,0.00016438,2]
[383316807,1756902677174,-151.0,0.00016438,2]
[383316809,1756902677183,-151.0,0.00016438,2]
[383316811,1756902677193,-151.0,0.00016438,2]
[383316814,1756902677203,-151.0,0.00016438,2]
[383316816,1756902677217,-151.0,0.00016438,2]
[383316818,1756902677227,-161.374665,0.00016438,2]
[383316819,1756902677236,-254.65692486,0.00016438,2]
[383316820,1756902677246,-2500.0,0.00016464,2]
[383316821,1756902677255,-1500.0,0.00016573,2]
[383316822,1756902677263,-151.0,0.000167,2]
[383316823,1756902677273,-500.0,0.00016712,2]
[383316824,1756902677283,-151.0,0.00016712,2]
[383316825,1756902677293,-480.0,0.00016712,2]
[383316826,1756902677310,-480.0,0.00016712,2]
[383316827,1756902677319,-480.0,0.00016712,2]
[383316828,1756902677328,-579.95,0.00016712,2]
[383316829,1756902677338,-480.0,0.00016712,2]
[383316830,1756902677348,-480.0,0.00016712,2]
[383316832,1756902677359,-814.64,0.00016712,2]
[383316834,1756902677369,-582.52,0.00016712,2]
[383316836,1756902677378,-480.0,0.00016712,2]
[383316838,1756902677388,-256.79526028,0.00016712,2]
[383316840,1756902677398,-480.0,0.00016712,2]
[383316842,1756902677407,-480.0,0.00016712,2]
[383316844,1756902677417,-578.96,0.00016712,2]
[383316846,1756902677426,-480.0,0.00016712,2]
[383316848,1756902677436,-3094.17,0.00016712,2]
[383316850,1756902677445,-480.0,0.00016712,2]
[383316852,1756902677455,-597.38,0.00016712,2]
[383316855,1756902677464,-480.0,0.00016712,2]
[383316856,1756902677473,-1170.24,0.00016712,2]
[383316858,1756902677483,-480.0,0.00016712,2]
[383316860,1756902677492,-1140.52,0.00016712,2]
[383316862,1756902677502,-1213.36,0.00016712,2]
[383316864,1756902677511,-565.74,0.00016712,2]
[383316866,1756902677520,-480.0,0.00016712,2]
[383316868,1756902677529,-1118.3,0.00016712,2]
[383316870,1756902677539,-480.0,0.00016712,2]
[383316872,1756902677548,-1392.5,0.00016712,2]
[383316874,1756902677558,-480.0,0.00016712,2]
[383316877,1756902677568,-480.0,0.00016712,2]
[383316878,1756902677578,-1157.36,0.00016712,2]
[383316881,1756902677588,-1188.25,0.00016712,2]
[383316883,1756902677599,-786.72,0.00016712,2]
[383316885,1756902677609,-500.0,0.00016712,2]
[383316887,1756902677619,-968.55,0.00016712,2]
[383316889,1756902677628,-804.96,0.00016712,2]
[383316891,1756902677637,-480.0,0.00016712,2]
[383316893,1756902677647,-3576.34,0.00016712,2]
[383316895,1756902677656,-480.0,0.00016712,2]
[383316897,1756902677665,-460.55,0.00016712,2]
[383316899,1756902677674,-564.09,0.00016712,2]
[383316901,1756902677683,-1140.19,0.00016712,2]
[383316903,1756902677693,-535.9,0.00016712,2]
[383316904,1756902677702,-3480.49,0.00016712,2]
[383316906,1756902677711,-781.04,0.00016712,2]
[383316919,1756902677818,-480.0,0.00016712,2]
[383316921,1756902677828,-631.86,0.00016712,2]
[383316923,1756902677838,-480.0,0.00016712,2]
[383316925,1756902677847,-1207.72,0.00016712,2]
[383316927,1756902677857,-480.0,0.00016712,2]
[383316929,1756902677866,-658.68,0.00016712,2]
[383316931,1756902677876,-625.86,0.00016712,2]
[383316933,1756902677885,-3000.0,0.00016712,2]
[383316935,1756902677895,-560.0,0.00016736,2]
[383316937,1756902677904,-308.36799583,0.00016758,2]
[383316939,1756902677914,-544.77319799,0.00016758,2]
[383316941,1756902677924,-3000.0,0.0001678,2]
[383316943,1756902677933,-1067.22004059,0.00016789,2]
[383316945,1756902677943,-252.20595712,0.00016789,2]
[383316947,1756902677953,-567.12528377,0.00016789,2]
[383316949,1756902677963,-1371.86983581,0.00016789,2]
[383316951,1756902677972,-1000.0,0.00016789,2]
[383316953,1756902677981,-12025.4273645,0.000168,2]
[383316955,1756902677991,-1015.42,0.000168,4]
[383316957,1756902678001,-155.391365,0.00016806,2]
[383316959,1756902678010,-2000.0,0.00016808,2]
[383316961,1756902678020,-2000.0,0.00016823,2]
[383316963,1756902678029,-2000.0,0.00016823,2]
[383316965,1756902678038,-1651.40593793,0.00016823,2]
[383316967,1756902678048,-2000.0,0.00016823,2]
[383316969,1756902678058,-1725.97694158,0.00016823,2]
[383316971,1756902678067,-192.43116239,0.00016823,2]
[383316973,1756902678077,-756.44038218,0.00016869,2]
[383316975,1756902678087,-2000.0,0.00016869,2]
[383316977,1756902678097,-2000.0,0.00016869,2]
[383316979,1756902678108,-2000.0,0.00016869,2]
[383316981,1756902678117,-2000.0,0.00016869,2]
[383316983,1756902678126,-1410.29187272,0.00016876,2]
[383316985,1756902678136,-2000.0,0.00016876,2]
[383316987,1756902678145,-2000.0,0.00016876,2]
[383316989,1756902678155,-1198.0591069,0.00016876,2]
[383316991,1756902678165,-2000.0,0.00016876,2]
[383316993,1756902678174,-1175.57971903,0.00016876,2]
[383316994,1756902678184,-2000.0,0.00016876,2]
[383316996,1756902678194,-2000.0,0.00016876,2]
[383316999,1756902678204,-855.85062329,0.00016876,2]
[383317000,1756902678214,-2000.0,0.00016876,2]
[383317003,1756902678224,-2000.0,0.00016876,2]
[383317004,1756902678233,-610.52360543,0.00016876,2]
[383317006,1756902678242,-187.6124187,0.00016876,2]
[383317008,1756902678252,-618.78716716,0.00016876,2]
[383317011,1756902678262,-2000.0,0.00016886,2]
[383317012,1756902678272,-160.0,0.00016894,3]
[383317014,1756902678281,-864.0,0.00016902,2]
[383317016,1756902678291,-1305.0,0.00016916,2]
[383317018,1756902678306,-500.0,0.00016986,2]
[383317020,1756902678316,-151.0,0.00016986,2]
[383317022,1756902678326,-480.0,0.00016986,2]
[383317024,1756902678335,-365.26,0.00016986,2]
[383317026,1756902678347,-480.0,0.00016986,2]
[383317028,1756902678357,-579.95,0.00016986,2]
[383317030,1756902678366,-480.0,0.00016986,2]
[383317032,1756902678377,-476.57709552,0.00016986,2]
[383317034,1756902678387,-814.64,0.00016986,2]
[383317036,1756902678396,-582.52,0.00016986,2]
[383317038,1756902678406,-480.0,0.00016986,2]
[383317040,1756902678415,-572.63,0.00016986,2]
[383317042,1756902678425,-480.0,0.00016986,2]
[383317044,1756902678435,-578.96,0.00016986,2]
[383317046,1756902678444,-480.0,0.00016986,2]
[383317048,1756902678454,-3094.17,0.00016986,2]
[383317050,1756902678463,-480.0,0.00016986,2]
[383317052,1756902678473,-597.38,0.00016986,2]
[383317054,1756902678482,-480.0,0.00016986,2]
[383317056,1756902678491,-1170.24,0.00016986,2]
[383317058,1756902678500,-480.0,0.00016986,2]
[383317060,1756902678510,-1140.52,0.00016986,2]
[383317062,1756902678520,-1213.36,0.00016986,2]
[383317064,1756902678529,-565.74,0.00016986,2]
[383317066,1756902678539,-480.0,0.00016986,2]
[383317068,1756902678549,-1118.3,0.00016986,2]
[383317070,1756902678558,-480.0,0.00016986,2]
[383317072,1756902678568,-1392.5,0.00016986,2]
[383317074,1756902678577,-480.0,0.00016986,2]
[383317076,1756902678587,-480.0,0.00016986,2]
[383317078,1756902678599,-1157.36,0.00016986,2]
[383317080,1756902678608,-1188.25,0.00016986,2]
[383317082,1756902678617,-786.72,0.00016986,2]
[383317084,1756902678626,-500.0,0.00016986,2]
[383317086,1756902678636,-968.55,0.00016986,2]
[383317088,1756902678645,-804.96,0.00016986,2]
[383317090,1756902678654,-480.0,0.00016986,2]
[383317092,1756902678663,-3576.34,0.00016986,2]
[383317094,1756902678673,-262.21,0.00016986,2]
[383317096,1756902678683,-564.09,0.00016986,2]
[383317098,1756902678692,-1140.19,0.00016986,2]
[383317100,1756902678701,-535.9,0.00016986,2]
[383317102,1756902678711,-3480.49,0.00016986,2]
[383317104,1756902678721,-781.04,0.00016986,2]
[383317106,1756902678730,-480.0,0.00016986,2]
[383317108,1756902678740,-631.86,0.00016986,2]
[383317110,1756902678749,-480.0,0.00016986,2]
[383317112,1756902678759,-1207.72,0.00016986,2]
[383317114,1756902678768,-480.0,0.00016986,2]
[383317116,1756902678777,-658.68,0.00016986,2]
[383317118,1756902678787,-625.86,0.00016986,2]
[383317120,1756902678796,-153.0,0.00016986,2]
[383317122,1756902678805,-153.0,0.00016986,2]
[383317124,1756902678814,-153.0,0.00016986,2]
[383317126,1756902678824,-153.0,0.00016986,2]
[383317128,1756902678835,-100609.26958456,0.00017,2]
[383317130,1756902678845,-500.0,0.00017009,2]
[383317132,1756902678855,-3000.0,0.00017012,2]
[383317134,1756902678865,-160.0,0.00017052,4]
[383317136,1756902678875,-1305.0,0.00017098,2]
[383317138,1756902678884,-1014.74334802,0.00017121,2]
[383317140,1756902678893,-353.0,0.00017134,2]
[383317142,1756902678903,-160.49602833,0.00017176,2]
[383317144,1756902678913,-160.0,0.0001721,5]
[383317146,1756902678923,-574.0,0.0001726,2]
[383317148,1756902678932,-151.0,0.0001726,2]
[383317150,1756902678942,-480.0,0.0001726,2]
[383317152,1756902678952,-480.0,0.0001726,2]
[383317154,1756902678961,-579.95,0.0001726,2]
[383317156,1756902678970,-480.0,0.0001726,2]
[383317158,1756902678980,-814.64,0.0001726,2]
[383317160,1756902678990,-582.52,0.0001726,2]
[383317162,1756902678999,-394.11,0.0001726,2]
[383317164,1756902679009,-480.0,0.0001726,2]
[383317166,1756902679019,-578.96,0.0001726,2]
[383317168,1756902679028,-450.49,0.0001726,2]
[383317170,1756902679038,-3094.17,0.0001726,2]
[383317172,1756902679047,-480.0,0.0001726,2]
[383317174,1756902679057,-597.38,0.0001726,2]
[383317176,1756902679066,-480.0,0.0001726,2]
[383317178,1756902679076,-1170.24,0.0001726,2]
[383317180,1756902679086,-480.0,0.0001726,2]
[383317182,1756902679096,-1140.52,0.0001726,2]
[383317184,1756902679106,-1213.36,0.0001726,2]
[383317186,1756902679116,-565.74,0.0001726,2]
[383317188,1756902679125,-480.0,0.0001726,2]
[383317190,1756902679135,-1118.3,0.0001726,2]
[383317192,1756902679145,-535.81944139,0.0001726,2]
[383317194,1756902679155,-1392.5,0.0001726,2]
[383317196,1756902679165,-518.53187965,0.0001726,2]
[383317198,1756902679175,-480.0,0.0001726,2]
[383317200,1756902679185,-1157.36,0.0001726,2]
[383317202,1756902679195,-1188.25,0.0001726,2]
[383317204,1756902679205,-786.72,0.0001726,2]
[383317206,1756902679215,-500.0,0.0001726,2]
[383317208,1756902679225,-968.55,0.0001726,2]
[383317210,1756902679235,-804.96,0.0001726,2]
[383317212,1756902679246,-480.0,0.0001726,2]
[383317215,1756902679255,-3576.34,0.0001726,2]
[383317217,1756902679266,-564.09,0.0001726,2]
[383317219,1756902679275,-1140.19,0.0001726,2]
[383317221,1756902679285,-535.9,0.0001726,2]
[383317222,1756902679296,-3480.49,0.0001726,2]
[383317224,1756902679307,-781.04,0.0001726,2]
[383317226,1756902679317,-480.0,0.0001726,2]
[383317229,1756902679327,-631.86,0.0001726,2]
[383317231,1756902679337,-480.0,0.0001726,2]
[383317232,1756902679346,-1207.72,0.0001726,2]
[383317234,1756902679355,-480.0,0.0001726,2]
[383317236,1756902679365,-658.68,0.0001726,2]
[383317238,1756902679374,-625.86,0.0001726,2]
[383317240,1756902679383,-3500.0,0.0001726,2]
[383317242,1756902679392,-660.0,0.00017284,2]
[383317244,1756902679401,-448.0,0.00017314,2]
[383317246,1756902679410,-1500.0,0.00017337,2]
[383317248,1756902679420,-1305.0,0.00017349,2]
[383317250,1756902679430,-798.56736063,0.00017356,2]
[383317252,1756902679439,-160.0,0.00017368,6]
[383317254,1756902679449,-2500.0,0.00017371,2]
[383317256,1756902679458,-2500.0,0.00017371,2]
[383317257,1756902679467,-2500.0,0.00017371,2]
[383317258,1756902679476,-300.0,0.00017408,2]
[383317259,1756902679486,-379.4617926,0.00017417,2]
[383317260,1756902679495,-383.69406673,0.00017417,2]
[383317261,1756902679504,-1489.58603603,0.00017417,2]
[383317262,1756902679513,-2500.0,0.00017417,2]
[383317263,1756902679522,-2500.0,0.00017424,2]
[383317264,1756902679532,-284.66944006,0.00017424,2]
[383317265,1756902679541,-2500.0,0.00017424,2]
[383317266,1756902679550,-2500.0,0.00017424,2]
[383317267,1756902679559,-2527.9116952,0.00017424,2]
[383317268,1756902679569,-571.61752399,0.00017424,2]
[383317269,1756902679578,-2500.0,0.00017424,2]
[383317270,1756902679589,-2500.0,0.00017434,2]
[383317271,1756902679598,-190.47523395,0.000175,2]
[383317272,1756902679607,-581.0,0.00017502,2]
[383317273,1756902679615,-1305.0,0.00017504,2]
[383317274,1756902679625,-160.0,0.00017526,7]
[383317275,1756902679635,-198.35796962,0.00017534,2]
[383317276,1756902679644,-480.0,0.00017534,2]
[383317277,1756902679653,-480.0,0.00017534,2]
[383317278,1756902679662,-579.95,0.00017534,2]
[383317279,1756902679671,-480.0,0.00017534,2]
[383317280,1756902679681,-814.64,0.00017534,2]
[383317281,1756902679690,-582.52,0.00017534,2]
[383317282,1756902679699,-530.38,0.00017534,2]
[383317283,1756902679708,-578.96,0.00017534,2]
[383317284,1756902679718,-3094.17,0.00017534,2]
[383317285,1756902679727,-480.0,0.00017534,2]
[383317287,1756902679736,-597.38,0.00017534,2]
[383317288,1756902679746,-229.25,0.00017534,2]
[383317290,1756902679756,-1170.24,0.00017534,2]
[383317292,1756902679767,-480.0,0.00017534,2]
[383317294,1756902679776,-1140.52,0.00017534,2]
[383317297,1756902679789,-1213.36,0.00017534,2]
[383317298,1756902679798,-565.74,0.00017534,2]
[383317300,1756902679807,-391.34114706,0.00017534,2]
[383317302,1756902679817,-1118.3,0.00017534,2]
[383317304,1756902679826,-1392.5,0.00017534,2]
[383317306,1756902679835,-480.0,0.00017534,2]
[383317309,1756902679847,-1157.36,0.00017534,2]
[383317310,1756902679856,-1188.25,0.00017534,2]
[383317312,1756902679866,-786.72,0.00017534,2]
[383317323,1756902679875,-500.0,0.00017534,2]
[383317326,1756902679973,-968.55,0.00017534,2]
[383317328,1756902679983,-804.96,0.00017534,2]
[383317330,1756902679993,-480.0,0.00017534,2]
[383317332,1756902680002,-3576.34,0.00017534,2]
[383317334,1756902680014,-564.09,0.00017534,2]
[383317336,1756902680023,-1140.19,0.00017534,2]
[383317338,1756902680032,-535.9,0.00017534,2]
[383317340,1756902680042,-3480.49,0.00017534,2]
[383317342,1756902680051,-781.04,0.00017534,2]
[383317343,1756902680061,-254.36592354,0.00017534,2]
[383317345,1756902680070,-631.86,0.00017534,2]
[383317347,1756902680079,-480.0,0.00017534,2]
[383317350,1756902680089,-1207.72,0.00017534,2]
[383317352,1756902680099,-480.0,0.00017534,2]
[383317354,1756902680109,-658.68,0.00017534,2]
[383317355,1756902680118,-625.86,0.00017534,2]
[383317357,1756902680128,-2953.48745278,0.0001756,2]
[383317359,1756902680138,-47936.37138397,0.000176,3]
[383317361,1756902680147,-10565.36259732,0.000176,3]
[383317363,1756902680157,-530.32150586,0.000176,3]
[383317365,1756902680166,-417.15472785,0.000176,3]
[383317367,1756902680176,-1510.13949038,0.00017636,2]
[383317369,1756902680186,-1923.8580654,0.00017644,2]
[383317371,1756902680195,-160.0,0.00017684,8]
[383317373,1756902680204,-480.0,0.00017808,2]
[383317375,1756902680214,-480.0,0.00017808,2]
[383317377,1756902680223,-579.95,0.00017808,2]
[383317379,1756902680232,-480.0,0.00017808,2]
[383317381,1756902680241,-814.64,0.00017808,2]
[383317383,1756902680251,-582.52,0.00017808,2]
[383317385,1756902680260,-578.96,0.00017808,2]
[383317387,1756902680270,-3094.17,0.00017808,2]
[383317389,1756902680279,-480.0,0.00017808,2]
[383317391,1756902680290,-597.38,0.00017808,2]
[383317393,1756902680302,-1170.24,0.00017808,2]
[383317395,1756902680313,-480.0,0.00017808,2]
[383317397,1756902680323,-1140.52,0.00017808,2]
[383317399,1756902680337,-1213.36,0.00017808,2]
[383317401,1756902680347,-565.74,0.00017808,2]
[383317403,1756902680357,-1118.3,0.00017808,2]
[383317406,1756902680367,-1392.5,0.00017808,2]
[383317408,1756902680380,-480.0,0.00017808,2]
[383317410,1756902680390,-1157.36,0.00017808,2]
[383317412,1756902680399,-1188.25,0.00017808,2]
[383317414,1756902680409,-786.72,0.00017808,2]